bitfinex/quotes_SOLUSD_20250814
["timestamp","ask_amount","ask_price","bid_price","bid_amount"]
[1755181943620,0.1,198.84,198.83,23.75704591]
[1755181943939,0.8,198.84,198.83,45.9]
[1755181944142,0.8,198.84,198.7,22.64071212]
[1755181944448,5.02992807,198.81,198.72,23.75704591]
[1755181944652,0.7,198.8,198.76,23.75704591]
[1755181944856,1.29995585,198.79,198.73,45.98]
[1755181945056,23.75704591,198.77,198.7,23.75704591]
[1755181945354,1.29995585,198.76,198.63,2.012224]
[1755181945559,0.7,198.75,198.64,46.1]
[1755181945726,0.59995585,198.74,198.55,5.03651473]
[1755181945931,25.80621557,198.73,198.53,36.22]
[1755181946126,15.10621557,198.68,198.53,36.22]
[1755181946353,28.79203911,198.61,198.55,15.096998]
[1755181946526,25.16360127,198.7,198.55,15.096998]
[1755181946527,1.29995585,198.6,198.55,38.85404391]
[1755181946734,4.80043423,198.76,198.54,46.2]
[1755181946735,0.7,198.59,198.54,46.2]
[1755181946937,0.7,198.67,198.58,23.75704591]
[1755181947138,0.7,198.67,198.54,51.49660589]
[1755181947139,0.7,198.7,198.65,23.75704591]
[1755181947457,23.75704591,198.66,198.45,0.66]
[1755181947752,1.29995585,198.65,198.46,46.2]
[1755181947960,0.7,198.64,198.47,46.2]
[1755181948163,0.7,198.64,198.48,0.66]
[1755181948164,0.59995585,198.63,198.48,0.66]
[1755181948368,5.03550027,198.59,198.53,23.75704591]
[1755181948531,0.59995585,198.58,198.56,23.75704591]
[1755181948734,1.29995585,198.63,198.57,46.2]
[1755181948931,0.7,198.67,198.57,46.2]
[1755181949138,5.6337878,198.66,198.57,46.2]
[1755181949342,24.45704591,198.65,198.58,23.75704591]
[1755181949566,0.59995585,198.64,198.63,23.75704591]
[1755181949863,0.7,198.74,198.63,24.41704591]
[1755181950043,0.59995585,198.73,198.69,23.75704591]
[1755181950242,49.75704591,198.71,198.58,0.66]
[1755181950565,1.29995585,198.7,198.58,5.0357371]
[1755181950766,23.75704591,198.67,198.59,46.42]
[1755181950962,23.75704591,198.67,198.52,15.10621557]
[1755181950963,23.75704591,198.63,198.51,0.71]
[1755181951175,1.31995585,198.62,198.53,23.75704591]
[1755181951379,25.07700176,198.62,198.55,23.75704591]
[1755181951561,25.07700176,198.62,198.42,0.71]
[1755181951562,23.75704591,198.56,198.42,0.71]
[1755181951870,23.75704591,198.44,198.36,5.04133897]
[1755181952042,23.75704591,198.42,198.35,15.142209]
[1755181952369,23.75704591,198.42,198.33,5.04196807]
[1755181952370,26.0,198.32,198.15,0.2]
[1755181952548,0.72,198.31,198.24,15.118301]
[1755181952868,15.10621557,198.41,198.25,46.38]
[1755181952869,0.59995585,198.38,198.25,46.38]
[1755181953073,15.122111,198.41,198.37,23.75704591]
[1755181953363,23.75704591,198.38,198.16,5.04642712]
[1755181953577,16.42617142,198.37,198.16,5.75642712]
[1755181953735,0.72,198.36,198.24,23.75704591]
[1755181953944,24.35700176,198.35,198.22,0.71]
[1755181954140,0.59995585,198.35,198.23,46.36]
[1755181954444,5.04184733,198.34,198.24,47.49]
[1755181954662,0.59995585,198.33,198.25,46.82]
[1755181954870,2.62995641,198.39,198.26,0.71]
[1755181955045,2.62995641,198.39,198.27,15.10621557]
[1755181955242,23.75704591,198.3,198.15,0.2]
[1755181955570,1.31995585,198.29,198.25,0.03]
[1755181955771,15.10621557,198.25,198.15,0.2]
[1755181956082,23.75704591,198.16,198.15,0.2]
[1755181956241,0.72,198.16,198.15,0.2]
[1755181956436,0.59995585,198.18,198.15,0.2]
[1755181956437,5.64604463,198.18,198.15,0.2]
[1755181956674,26.0,198.13,198.05,60.0]
[1755181956846,23.75704591,198.1,198.05,60.0]
[1755181957043,26.0,198.15,198.06,0.71]
[1755181957273,0.59995585,198.14,198.06,0.21]
[1755181957562,26.0,198.15,198.06,23.75704591]
[1755181957763,23.75704591,198.15,198.07,10.0]
[1755181957963,23.75704591,198.13,198.06,10.0]
[1755181958161,23.75704591,198.12,198.06,10.0]
[1755181958341,15.10621557,198.2,198.0,59.62592266]
[1755181958342,15.10621557,198.2,198.0,10.71]
[1755181958545,23.75704591,198.02,197.98,15.139663]
[1755181958742,23.75704591,197.99,197.96,0.03]
[1755181958939,23.75704591,197.98,197.96,0.03]
[1755181959253,15.10621557,198.15,198.03,0.03]
[1755181959454,51.83568547,198.16,197.96,0.03]
[1755181959455,15.10621557,198.03,197.96,0.03]
[1755181959673,15.10621557,198.03,197.79,36.24]
[1755181959674,15.10621557,197.96,197.81,10.0]
[1755181959846,23.75704591,197.94,197.88,10.0]
[1755181960049,23.75704591,197.99,197.91,10.0]
[1755181960252,15.10621557,198.13,197.99,10.0]
[1755181960570,23.75704591,198.16,198.07,10.0]
[1755181960779,23.75704591,198.25,198.15,33.75704591]
[1755181960947,0.72,198.32,198.22,23.75704591]
[1755181961146,23.75704591,198.36,198.26,10.0]
[1755181961346,5.98221647,198.38,198.17,0.50461724]
[1755181961347,23.75704591,198.31,198.17,0.50461724]
[1755181961582,0.72,198.3,198.1,0.71]
[1755181961747,0.72,198.3,198.1,10.0]
[1755181961748,23.75704591,198.15,198.1,10.0]
[1755181961949,23.75704591,198.15,198.1,10.71]
[1755181962154,23.75704591,198.11,198.05,0.71]
[1755181962365,0.72,198.15,198.05,10.0]
[1755181962688,15.10621557,198.18,198.06,10.0]
[1755181962861,0.72,198.19,198.11,10.0]
[1755181963183,23.75704591,198.15,198.12,10.0]
[1755181963486,23.75704591,198.16,198.11,10.0]
[1755181963652,5.76323688,198.29,198.15,10.0]
[1755181963850,5.76323688,198.29,198.19,10.0]
[1755181964080,23.75704591,198.23,198.18,10.0]
[1755181964283,23.75704591,198.21,198.18,10.0]
[1755181964452,23.75704591,198.22,198.19,10.0]
[1755181964652,26.0,198.26,198.19,10.0]
[1755181964980,5.04330747,198.29,198.2,10.0]
[1755181965190,5.04272301,198.31,198.2,10.0]
[1755181965353,12.60288618,198.37,198.22,33.75704591]
[1755181965354,23.75704591,198.29,198.22,33.75704591]
[1755181965593,2.629957,198.38,198.3,10.0]
[1755181965910,23.75704591,198.34,198.3,10.0]
[1755181966087,23.75704591,198.33,198.25,10.71]
[1755181966294,15.121349,198.42,198.21,15.10621557]
[1755181966497,23.75704591,198.3,198.26,10.0]
[1755181966800,26.0,198.35,198.24,10.71]
[1755181966978,0.72,198.38,198.27,10.0]
[1755181967182,0.72,198.38,198.26,10.0]
[1755181967395,23.75704591,198.34,198.3,10.0]
[1755181967705,0.72,198.38,198.26,10.0]
[1755181967888,23.75704591,198.33,198.3,10.0]
[1755181968424,23.75704591,198.31,198.22,10.0]
[1755181968577,23.75704591,198.28,198.23,10.0]
[1755181968780,5.04108484,198.37,198.27,23.75704591]
[1755181969083,23.75704591,198.36,198.29,10.0]
[1755181969284,5.04066001,198.39,198.26,33.75704591]
[1755181969285,23.75704591,198.33,198.26,33.75704591]
[1755181969503,5.04066001,198.39,198.19,47.02]
[1755181969504,23.75704591,198.27,198.19,34.46704591]
[1755181969677,23.75704591,198.26,198.19,57.75]
[1755181969881,26.0,198.32,198.23,10.0]
[1755181970191,26.0,198.32,198.19,47.75]
[1755181970192,23.75704591,198.25,198.19,57.75]
[1755181970397,5.04382764,198.27,198.2,10.0]
[1755181970706,5.04382764,198.27,198.15,70.77704591]
[1755181970707,5.04382764,198.27,198.18,10.0]
[1755181971011,15.10621557,198.25,198.14,10.0]
[1755181971188,0.72,198.24,198.12,46.98]
[1755181971380,23.75704591,198.2,198.16,10.0]
[1755181971580,5.04382764,198.27,198.17,10.0]
[1755181971820,23.75704591,198.18,198.14,10.0]
[1755181971989,17.65289608,198.27,198.12,46.98]
[1755181971990,0.72,198.17,198.12,10.0]
[1755181972188,15.10621557,198.25,198.12,10.0]
[1755181972189,23.75704591,198.15,198.12,10.0]
[1755181972410,23.75704591,198.15,198.13,10.0]
[1755181973009,23.75704591,198.14,198.11,10.0]
[1755181973213,0.72,198.18,198.1,0.03]
[1755181973411,23.75704591,198.11,198.1,0.03]
[1755181974034,23.75704591,198.12,198.1,0.03]
[1755181974391,23.75704591,198.11,198.1,0.03]
[1755181974702,17.66338631,198.15,198.1,0.03]
[1755181975011,5.04591785,198.18,198.12,10.0]
[1755181975214,28.80296376,198.18,198.12,10.0]
[1755181975417,28.80296376,198.18,198.1,0.74]
[1755181975418,5.04530316,198.21,198.14,10.0]
[1755181975623,23.75704591,198.23,198.19,10.0]
[1755181975829,23.75704591,198.27,198.21,10.0]
[1755181976035,23.75704591,198.28,198.23,10.0]
[1755181976326,5.04286434,198.3,198.23,10.0]
[1755181976496,23.75704591,198.28,198.23,10.0]
[1755181976695,23.75704591,198.3,198.24,10.71]
[1755181976913,23.75704591,198.31,198.25,10.0]
[1755181977116,5.04203922,198.34,198.26,23.75704591]
[1755181977425,5.04203922,198.34,198.22,5.04479464]
[1755181977426,5.04006854,198.41,198.34,10.0]
[1755181977630,23.75704591,198.39,198.34,10.0]
[1755181977922,15.181349,198.42,198.36,10.0]
[1755181978098,0.06,198.42,198.37,10.0]
[1755181978294,0.06,198.42,198.38,10.0]
[1755181978497,23.81704591,198.42,198.38,10.0]
[1755181978724,0.06,198.42,198.37,10.0]
[1755181978910,0.06,198.42,198.41,33.75704591]
[1755181979230,0.06,198.42,198.41,10.71]
[1755181979429,23.81704591,198.42,198.39,10.0]
[1755181979930,23.75704591,198.41,198.38,10.0]
[1755181980093,0.06,198.42,198.36,10.0]
[1755181980300,5.04133897,198.36,198.28,47.39]
[1755181980531,0.06,198.42,198.38,10.0]
[1755181980716,23.81704591,198.42,198.37,10.0]
[1755181981030,23.75704591,198.38,198.35,10.0]
[1755181981237,5.33982773,198.42,198.41,10.0]
[1755181981238,0.06,198.42,198.41,10.0]
[1755181981835,0.06,198.42,198.41,57.36]
[1755181982004,0.06,198.42,198.41,81.11704591]
[1755181982207,0.06,198.42,198.39,15.04043055]
[1755181982414,23.81704591,198.42,198.38,10.0]
[1755181982700,23.81704591,198.42,198.41,10.0]
[1755181982701,0.06,198.42,198.41,10.0]
[1755181982936,0.06,198.42,198.41,34.41704591]
[1755181983123,0.06,198.42,198.41,10.0]
[1755181983327,23.81704591,198.42,198.37,57.32]
[1755181983643,0.06,198.42,198.38,34.41704591]
[1755181983825,0.06,198.42,198.41,10.0]
[1755181984206,5.04006854,198.41,198.37,56.66]
[1755181984418,5.04006854,198.41,198.38,10.0]
[1755181984834,23.75704591,198.39,198.33,10.0]
[1755181985039,23.75704591,198.39,198.3,36.28]
[1755181985040,0.24,198.4,198.35,10.0]
[1755181985249,5.04006854,198.41,198.3,82.88]
[1755181985250,23.75704591,198.36,198.3,82.88]
[1755181985539,23.75704591,198.35,198.33,10.0]
[1755181985737,0.48,198.4,198.3,82.88]
[1755181985933,0.48,198.4,198.3,92.88]
[1755181986237,0.48,198.4,163.26,27.04340005]
[1755181986238,5.04286434,198.3,198.25,10.0]
[1755181986421,5.04286434,198.3,198.27,10.0]
[1755181986821,23.75704591,198.35,198.31,10.0]
[1755181987010,23.75704591,198.39,198.35,10.0]
[1755181987214,5.04006854,198.41,198.35,10.0]
[1755181987215,28.79711445,198.41,198.35,10.0]
[1755181987443,23.75704591,198.41,198.36,10.0]
[1755181987610,0.06,198.42,198.36,10.0]
[1755181987815,23.75704591,198.37,198.31,10.0]
[1755181988022,15.10621557,198.39,198.3,10.0]
[1755181988225,15.10621557,198.39,198.15,10.0]
[1755181988226,5.04286434,198.3,198.26,10.0]
[1755181988418,23.75704591,198.27,198.17,10.0]
[1755181988621,23.75704591,198.23,198.2,10.0]
[1755181988834,5.04286434,198.3,198.23,10.0]
[1755181989219,5.04286434,198.3,198.15,34.42664965]
[1755181989220,23.75704591,198.24,198.19,10.0]
[1755181989423,23.75704591,198.2,198.15,29.38]
[1755181989625,23.75704591,198.16,198.09,10.0]
[1755181989931,26.0,198.2,198.03,15.136608]
[1755181989932,23.75704591,198.11,198.08,10.0]
[1755181990139,23.75704591,198.16,198.11,10.0]
[1755181990322,0.69,198.26,198.17,10.0]
[1755181990522,23.75704591,198.21,198.17,10.0]
[1755181990724,23.75704591,198.21,198.16,10.0]
[1755181990940,23.75704591,198.21,198.17,10.0]
[1755181991152,23.75704591,198.24,198.16,10.0]
[1755181991442,15.10621557,198.36,198.24,10.0]
[1755181991630,23.75704591,198.32,198.26,10.0]
[1755181991823,23.75704591,198.33,198.27,10.0]
[1755181992026,5.04057664,198.39,198.29,33.75704591]
[1755181992228,23.75704591,198.41,198.35,10.0]
[1755181992451,23.75704591,198.38,198.35,10.0]
[1755181992662,0.06,198.42,198.4,10.0]
[1755181992855,0.06,198.42,198.34,5.0417864]
[1755181992856,0.06,198.42,198.39,33.75704591]
[1755181993031,0.06,198.42,198.41,10.0]
[1755181993729,28.85686044,198.42,198.33,10.0]
[1755181993944,23.75704591,198.4,198.31,10.0]
[1755181994117,5.78981453,198.42,198.36,10.0]
[1755181994118,31.09981453,198.42,198.36,10.0]
[1755181994654,23.75704591,198.39,198.33,10.0]
[1755181994955,31.09981453,198.42,198.28,5.04318333]
[1755181994956,0.06,198.42,198.41,10.0]
[1755181995138,0.06,198.42,198.39,10.0]
[1755181995139,5.09981453,198.42,198.39,10.0]
[1755181995448,5.09981453,198.42,198.34,0.66]
[1755181995449,5.09981453,198.42,198.37,10.0]
[1755181995629,24.44704591,198.41,198.34,23.75704591]
[1755181995829,0.69,198.41,198.33,56.74]
[1755181996031,24.44704591,198.41,198.35,10.0]
[1755181996233,23.75704591,198.4,198.33,56.74]
[1755181996428,5.04057664,198.39,198.35,10.0]
[1755181997234,5.09991382,198.42,198.38,33.75704591]
[1755181997431,5.09991382,198.42,198.4,33.75704591]
[1755181997623,0.06,198.42,198.41,34.41704591]
[1755181997824,0.06,198.42,198.41,10.0]
[1755181998338,0.06,198.42,198.41,33.75704591]
[1755181998524,0.06,198.42,198.39,33.75704591]
[1755181998731,0.06,198.42,198.41,10.0]
[1755181999150,0.06,198.42,198.41,34.41704591]
[1755181999448,0.06,198.42,198.41,10.0]
[1755181999832,0.06,198.42,198.39,33.75704591]
[1755182000042,0.06,198.42,198.37,46.62]
[1755182000043,0.06,198.42,198.4,10.0]
[1755182000244,0.06,198.42,198.37,10.0]
[1755182000546,23.75704591,198.41,198.36,10.0]
[1755182000747,23.75704591,198.37,198.31,10.0]
[1755182000947,23.75704591,198.37,198.32,10.0]
[1755182001124,41.45639677,198.42,198.34,10.0]
[1755182001445,5.09981453,198.42,198.4,23.75704591]
[1755182001624,5.09981453,198.42,198.37,33.75704591]
[1755182001831,5.09981453,198.42,198.4,10.0]
[1755182002028,0.06,198.42,198.41,33.75704591]
[1755182002226,0.06,198.42,198.41,10.66]
[1755182002422,0.06,198.42,198.41,34.41704591]
[1755182002648,0.06,198.42,198.41,39.45711445]
[1755182002846,0.06,198.42,198.41,10.0]
[1755182003033,0.06,198.42,198.41,34.41704591]
[1755182003450,0.06,198.42,198.4,10.0]
[1755182003756,0.06,198.42,198.37,10.0]
[1755182004051,23.75704591,198.39,198.34,56.46]
[1755182004260,0.06,198.42,198.36,10.0]
[1755182004423,5.04006854,198.41,198.38,10.0]
[1755182004827,5.04006854,198.41,198.37,10.0]
[1755182005028,23.75704591,198.4,198.36,10.0]
[1755182005260,23.75704591,198.39,198.32,10.0]
[1755182005428,17.6402399,198.41,198.37,10.0]
[1755182005633,5.09984696,198.42,198.37,10.0]
[1755182005841,0.06,198.42,198.4,10.0]
[1755182006158,23.75704591,198.41,198.38,10.0]
[1755182006354,5.04057664,198.39,198.38,10.0]
[1755182006560,5.04028971,198.41,198.39,10.0]
[1755182007056,0.06,198.42,198.4,10.0]
[1755182007265,0.06,198.42,198.41,10.0]
[1755182007475,0.06,198.42,198.41,10.66]
[1755182007638,0.06,198.42,198.41,10.0]
[1755182008345,5.09981453,198.42,198.4,10.0]
[1755182008741,5.09981453,198.42,198.37,10.0]
[1755182008954,18.38935086,198.42,198.35,10.0]
[1755182009169,23.75704591,198.41,198.33,57.1]
[1755182009478,18.38935086,198.42,198.29,10.0]
[1755182009479,23.75704591,198.35,198.29,10.0]
[1755182009632,26.0,198.35,198.3,10.0]
[1755182009835,26.0,198.35,198.26,70.21704591]
[1755182009836,26.0,198.39,198.34,33.75704591]
[1755182010045,23.75704591,198.37,198.3,33.75704591]
[1755182010229,23.75704591,198.35,198.3,10.0]
[1755182010431,23.75704591,198.35,198.27,0.66]
[1755182010432,5.04159314,198.35,198.32,10.0]
[1755182010740,5.04159314,198.35,198.28,46.54]
[1755182010741,5.04083072,198.38,198.33,10.7]
[1755182010946,12.60028684,198.41,198.38,10.0]
[1755182010947,5.04006854,198.41,198.38,10.0]
[1755182011341,0.06,198.42,198.38,10.0]
[1755182011548,0.06,198.42,198.41,23.75704591]
[1755182011742,0.06,198.42,198.4,33.75704591]
[1755182012149,0.06,198.42,198.41,33.75704591]
[1755182012335,0.06,198.42,198.41,10.0]
[1755182013153,0.06,198.42,198.41,10.7]
[1755182013352,0.06,198.42,198.4,10.0]
[1755182013866,0.06,198.42,198.39,46.44]
[1755182014160,23.75704591,198.4,198.32,46.44]
[1755182014374,23.75704591,198.36,198.3,56.44]
[1755182014659,5.04129928,198.37,198.34,10.0]
[1755182014860,5.04129928,198.37,198.31,10.0]
[1755182015070,23.75704591,198.33,198.3,46.44]
[1755182015245,23.75704591,198.31,198.24,0.7]
[1755182015560,0.69,198.33,198.22,23.75704591]
[1755182015561,23.75704591,198.29,198.26,10.0]
[1755182015762,26.0,198.33,198.27,0.7]
[1755182016082,23.75704591,198.28,198.26,10.0]
[1755182016370,26.0,198.33,198.26,10.0]
[1755182016371,23.75704591,198.3,198.26,10.0]
[1755182016568,5.04311866,198.29,198.26,10.0]
[1755182016775,0.06,198.42,198.28,23.75704591]
[1755182016946,5.09982874,198.42,198.39,10.0]
[1755182017267,5.09982874,198.42,198.39,80.63704591]
[1755182017467,5.09981453,198.42,198.31,0.504261]
[1755182017667,10.0,198.26,198.03,0.7]
[1755182017978,23.75704591,198.11,198.03,0.7]
[1755182018177,23.75704591,198.11,197.9,10.2]
[1755182018178,26.0,198.08,198.0,48.48]
[1755182018382,23.75704591,198.02,198.0,48.48]
[1755182018590,10.0,198.18,197.92,5.08251385]
[1755182018591,24.26130691,198.01,197.95,0.7]
[1755182018878,5.04948495,198.04,197.95,49.16]
[1755182019176,26.0,198.12,198.01,23.75704591]
[1755182019353,26.0,198.12,197.96,1.20515255]
[1755182019354,3.72887323,198.11,198.07,23.75704591]
[1755182019556,28.80274479,198.19,198.1,23.75704591]
[1755182019760,3.72728867,198.18,198.08,49.12]
[1755182019950,0.504261,198.21,198.15,23.75704591]
[1755182020146,5.11810778,198.3,198.16,49.08]
[1755182020349,61.05082733,198.41,198.08,26.0]
[1755182020350,0.504261,198.28,198.19,23.75704591]
[1755182020579,23.75704591,198.25,198.2,0.7]
[1755182020785,5.14828035,198.34,198.21,0.7]
[1755182021082,23.75704591,198.28,198.21,24.45704591]
[1755182021381,23.75704591,198.28,198.22,0.7]
[1755182021578,0.504261,198.32,198.22,0.7]
[1755182021787,0.504261,198.33,198.24,23.75704591]
[1755182021962,0.504261,198.33,198.22,0.7]
[1755182021963,0.504261,198.35,198.29,23.75704591]
[1755182022292,0.504261,198.35,198.3,0.7]
[1755182022477,23.75704591,198.35,198.31,0.7]
[1755182022781,23.75704591,198.36,198.32,49.02]
[1755182022985,31.60457037,198.41,198.33,48.98]
[1755182023288,23.75704591,198.35,198.33,48.98]
[1755182023446,0.504261,198.34,198.29,0.7]
[1755182023657,0.504261,198.34,197.98,61.31357511]
[1755182023658,0.504261,198.4,198.3,48.96]
[1755182023972,23.75704591,198.38,198.31,24.45704591]
[1755182024189,0.504261,198.37,198.26,0.7]
[1755182024376,3.72642292,198.36,198.27,48.62]
[1755182024679,26.0,198.34,198.27,48.62]
[1755182024882,26.0,198.25,198.22,0.7]
[1755182025094,26.0,198.31,198.23,0.7]
[1755182025275,23.75704591,198.29,198.23,0.7]
[1755182025478,23.75704591,198.26,198.24,48.54]
[1755182025698,24.26130691,198.25,198.17,23.75704591]
[1755182025899,23.75704591,198.23,198.21,48.54]
[1755182026196,23.75704591,198.23,198.18,0.7]
[1755182026386,0.504261,198.22,198.18,0.7]
[1755182026577,23.75704591,198.23,198.19,0.7]
[1755182026785,18.15784719,198.26,198.2,0.7]
[1755182026994,5.04311866,198.29,198.2,0.7]
[1755182027166,5.54737966,198.29,198.23,23.75704591]
[1755182027369,3.72884715,198.28,198.24,0.7]
[1755182027570,5.04301067,198.3,198.25,24.45704591]
[1755182027775,3.72855147,198.29,198.26,49.16]
[1755182028068,3.72855147,198.29,198.27,48.44]
[1755182028069,0.504261,198.29,198.27,48.44]
[1755182028387,0.504261,198.29,198.27,0.7]
[1755182028576,28.80041891,198.28,198.22,0.7]
[1755182028784,5.043373,198.28,198.24,23.75704591]
[1755182029007,5.043373,198.28,198.25,0.7]
[1755182029204,5.547634,198.28,198.25,0.7]
[1755182029437,5.043373,198.28,198.26,48.36]
[1755182029571,5.04210154,198.33,198.27,0.7]
[1755182029771,23.75704591,198.31,198.27,0.7]
[1755182030003,0.504261,198.3,198.28,0.7]
[1755182030580,5.043373,198.28,198.26,48.36]
[1755182030782,23.75704591,198.32,198.27,0.7]
[1755182030982,23.75704591,198.29,198.27,0.7]
[1755182031506,23.75704591,198.3,198.27,0.7]
[1755182031715,3.73018348,198.29,198.27,0.7]
[1755182032117,23.75704591,198.29,198.26,48.36]
[1755182032593,23.75704591,198.3,198.27,0.7]
[1755182032907,27.9914572,198.29,198.26,48.36]
[1755182033108,24.26130691,198.29,198.26,49.06]
[1755182033531,23.75704591,198.28,198.26,49.06]
[1755182033832,24.26130691,198.27,198.22,0.7]
[1755182034021,0.504261,198.27,198.25,48.06]
[1755182034223,23.75704591,198.26,198.18,0.7]
[1755182034529,5.04439063,198.24,198.19,47.96]
[1755182034821,5.04439063,198.24,198.2,0.7]
[1755182034993,28.80143654,198.24,198.21,0.7]
[1755182035192,23.75704591,198.25,198.22,0.7]
[1755182035417,5.54773932,198.28,198.23,0.7]
[1755182035688,29.30478523,198.28,198.24,0.7]
[1755182036725,5.54773932,198.28,198.25,47.82]
[1755182036912,5.54773932,198.28,198.25,48.52]
[1755182037105,5.54773932,198.28,198.25,47.82]
[1755182037424,5.54737814,198.3,198.26,0.7]
[1755182037714,29.30442405,198.3,198.26,0.7]
[1755182038026,23.75704591,198.27,198.25,47.82]
[1755182038216,5.54737814,198.3,198.25,47.82]
[1755182038416,23.75704591,198.27,198.25,47.82]
[1755182038737,5.04413619,198.25,198.24,47.58]
[1755182038896,23.75704591,198.25,198.23,47.54]
[1755182039218,0.504261,198.25,198.23,47.54]
[1755182039589,24.26130691,198.25,198.23,47.54]
[1755182039905,0.504261,198.26,198.24,0.7]
[1755182040105,0.504261,198.28,198.24,0.7]
[1755182040312,23.75704591,198.25,198.15,0.7]
[1755182040496,5.04314398,198.29,198.12,0.65]
[1755182040497,23.75704591,198.18,198.12,0.65]
[1755182040719,5.54944975,198.21,198.15,23.75704591]
[1755182041057,18.16233507,198.21,198.12,24.40704591]
[1755182041221,23.75704591,198.2,198.16,47.38]
[1755182041417,0.504261,198.19,198.17,47.36]
[1755182041620,0.504261,198.19,198.11,0.65]
[1755182041843,0.504261,198.19,198.12,47.36]
[1755182042029,23.75704591,198.15,198.12,47.36]
[1755182042249,23.75704591,198.13,198.12,47.36]
[1755182042424,23.75704591,198.13,198.12,47.3]
[1755182042754,29.3067207,198.2,198.12,71.70704591]
[1755182042926,23.75704591,198.17,198.12,47.95]
[1755182043121,5.54967479,198.2,198.06,36.31]
[1755182043122,23.75704591,198.15,198.06,36.31]
[1755182043341,23.75704591,198.11,198.07,47.24]
[1755182043550,0.504261,198.16,198.08,71.64704591]
[1755182043851,23.75704591,198.13,198.09,0.65]
[1755182044060,0.504261,198.12,198.09,0.65]
[1755182044222,23.75704591,198.12,198.1,47.18]
[1755182044658,0.504261,198.16,198.1,47.83]
[1755182044659,23.75704591,198.14,198.1,47.83]
[1755182044863,23.75704591,198.12,198.06,36.96]
[1755182045050,5.0466818,198.15,198.11,47.1]
[1755182045249,17.66338631,198.15,198.11,47.1]
[1755182045467,26.0,198.12,198.06,0.03]
[1755182045628,26.0,198.12,198.06,1e-08]
[1755182045629,3.73006912,198.11,198.06,1e-08]
[1755182045960,58.00301091,198.15,198.04,1e-08]
[1755182045961,26.0,198.07,198.04,1e-08]
[1755182046124,23.75704591,198.05,198.04,1e-08]
[1755182046327,3.73006912,198.05,198.04,1e-08]
[1755182046634,5.04897505,198.06,198.04,1e-08]
[1755182046850,23.75704591,198.05,198.04,1e-08]
[1755182047022,0.504261,198.05,198.04,1e-08]
[1755182047236,4.22698309,198.05,198.04,1e-08]
[1755182047555,27.984029,198.05,198.04,1e-08]
[1755182047926,4.22698309,198.05,198.04,1e-08]
[1755182048130,27.984029,198.05,198.04,1e-08]
[1755182048432,4.22698309,198.05,198.04,1e-08]
[1755182048642,9.23663051,198.05,198.04,1e-08]
[1755182048844,0.504261,198.07,198.04,0.65000001]
[1755182049044,0.504261,198.07,198.05,0.65]
[1755182049258,23.75704591,198.07,198.04,1e-08]
[1755182049457,0.504261,198.13,198.05,0.65]
[1755182049753,3.71677208,198.12,198.05,0.65]
[1755182049957,4.22103308,198.11,198.05,0.65]
[1755182050160,3.71677208,198.1,198.05,0.65]
[1755182050329,23.75704591,198.12,198.06,23.75704591]
[1755182050528,0.504261,198.11,198.07,0.65]
[1755182050760,9.61574865,198.18,198.08,5.69846526]
[1755182050761,23.75704591,198.12,198.08,5.69846526]
[1755182050959,0.504261,198.11,198.09,0.65]
[1755182051271,23.75704591,198.11,198.05,0.65]
[1755182051568,23.75704591,198.09,198.05,0.65]